bitfinex-derivatives/quotes_ETHF0:USTF0_20251118
["timestamp","ask_amount","ask_price","bid_price","bid_amount"]
[1763476448187,0.00324125,3087.2,3086.3,0.8791942]
[1763476448388,0.00324125,3087.2,3086.4,0.8791942]
[1763476448584,9.24244126,3087.2,3084.6,1.12244827]
[1763476448883,9.24244126,3087.2,3082.6,13.37438104]
[1763476448884,3.24244126,3087.2,3083.2,1.12244827]
[1763476449079,3.24244126,3087.2,3081.7,40.8]
[1763476449080,0.00324125,3087.2,3082.5,1.12244827]
[1763476449279,3.61835766,3087.5,3082.6,0.83883574]
[1763476449484,12.0,3087.4,3083.0,0.52604]
[1763476449691,12.0,3087.4,3082.7,0.83883574]
[1763476449692,0.00486175,3085.2,3084.6,0.00486175]
[1763476449877,0.00713156,3085.2,3084.6,0.00839179]
[1763476450078,16.52213156,3085.2,3082.4,1.12244827]
[1763476450282,10.52213156,3085.2,3082.5,0.83884061]
[1763476450586,4.461,3085.1,3082.6,0.83884061]
[1763476450782,4.461,3085.1,3081.1,0.52637]
[1763476451081,0.00486175,3083.4,3082.8,0.00486175]
[1763476452484,0.00486175,3083.4,3081.1,0.00374838]
[1763476452485,3.24320001,3083.3,3081.1,0.00374838]
[1763476452679,0.00486175,3083.4,3081.1,0.00374838]
[1763476452890,3.244,3083.3,3081.1,0.00374838]
[1763476453186,0.00486175,3083.4,3081.1,0.00374838]
[1763476453390,0.00486175,3083.4,3081.9,0.00486175]
[1763476453987,0.00486175,3083.4,3081.1,0.00374838]
[1763476453988,6.00486175,3083.4,3081.1,0.00374838]
[1763476454181,3.244,3083.3,3081.1,0.00374838]
[1763476455183,0.00486175,3083.4,3081.1,0.00374838]
[1763476455687,3.244,3083.3,3079.4,0.841339]
[1763476455992,13.19062415,3083.6,3078.8,0.841339]
[1763476456287,0.00486175,3081.5,3078.5,0.841339]
[1763476456488,0.00486175,3081.5,3079.4,0.52666]
[1763476456683,0.00486175,3081.5,3079.7,0.3813]
[1763476456885,0.00723563,3081.5,3079.7,0.3813]
[1763476457087,0.00723563,3081.5,3079.2,1.368029]
[1763476457282,0.00723563,3081.5,3079.1,0.841339]
[1763476457687,0.00723563,3081.5,3080.0,0.52656]
[1763476457887,10.8875,3083.6,3080.4,0.52649]
[1763476458092,14.5915,3083.6,3079.7,4.467439]
[1763476458290,14.5915,3083.6,3079.9,0.841339]
[1763476458682,14.5915,3083.6,3079.7,0.3813]
[1763476459088,0.3665,3083.6,3079.7,0.3813]
[1763476459291,16.432,3083.5,3079.7,0.3813]
[1763476459587,19.68,3083.5,3078.9,0.00367089]
[1763476459890,2.30712415,3082.9,3078.9,0.00367089]
[1763476460207,5.91922415,3082.3,3076.8,0.841339]
[1763476460379,3.248,3081.6,3075.9,0.841339]
[1763476460582,5.55512415,3081.6,3075.7,0.841339]
[1763476460779,3.248,3080.8,3075.1,1.368739]
[1763476460991,5.55512415,3080.9,3075.1,0.841339]
[1763476461286,3.26720314,3081.4,3075.5,0.841339]
[1763476461287,3.248,3080.8,3075.5,0.841339]
[1763476461488,0.3628,3081.4,3076.2,0.841339]
[1763476461689,11.346,3081.3,3077.3,0.52702]
[1763476461888,0.3628,3081.4,3077.2,0.3813]
[1763476462093,0.3628,3081.4,3077.8,0.52693]
[1763476462094,15.252,3081.3,3077.8,0.52693]
[1763476462289,0.00486997,3079.9,3079.2,0.00486997]
[1763476462700,28.50120001,3079.8,3077.2,0.3813]
[1763476462887,0.00486997,3079.9,3077.2,0.3813]
[1763476463191,10.677,3079.8,3077.2,0.3813]
[1763476463382,10.677,3079.8,3075.9,0.841339]
[1763476463586,10.677,3079.8,3076.1,0.52723]
[1763476463790,15.005,3079.7,3075.9,0.52725]
[1763476463995,15.005,3079.7,3075.8,0.3813]
[1763476464293,15.005,3079.7,3076.2,0.52721]
[1763476464595,16.756,3079.6,3076.3,0.52719]
[1763476464797,16.756,3079.6,3076.5,0.52716]
[1763476465294,16.756,3079.6,3075.8,0.3813]
[1763476465295,0.00486997,3079.9,3075.8,0.3813]
[1763476465592,10.53386997,3079.9,3076.4,0.52717]
[1763476465895,3.2488,3079.8,3076.4,0.00253112]
[1763476466191,10.53386997,3079.9,3076.4,0.00253112]
[1763476466892,3.2496,3079.8,3074.5,0.37683112]
[1763476467091,4.465,3079.7,3074.5,0.37683112]
[1763476467294,0.3665,3080.0,3074.5,0.37683112]
[1763476467295,19.557,3079.6,3074.6,0.52749]
[1763476467491,19.557,3079.6,3074.5,0.37683112]
[1763476467796,19.557,3079.6,3074.6,0.52747]
[1763476467986,19.557,3079.6,3074.5,0.37683112]
[1763476468695,3.2496,3079.5,3074.5,0.37683112]
[1763476468880,19.557,3079.6,3074.5,0.37683112]
[1763476469286,19.557,3079.6,3073.2,0.3813]
[1763476469587,30.53612415,3079.6,3073.2,0.3813]
[1763476469786,8.672,3078.9,3071.5,0.52801]
[1763476470085,10.534,3077.5,3071.4,0.52803]
[1763476470285,6.799,3077.4,3069.8,0.624]
[1763476470482,58.529,3077.5,3069.8,0.624]
[1763476470786,19.55,3077.4,3069.8,0.624]
[1763476471597,19.55,3077.4,3071.0,0.5281]
[1763476471793,58.79103457,3077.5,3069.8,0.624]
[1763476472093,0.00487876,3074.8,3071.6,0.38427734]
[1763476472396,19.552,3074.7,3071.6,0.38427734]
[1763476472892,10.54,3074.7,3071.6,0.38427734]
[1763476473086,4.228,3074.6,3071.6,0.38427734]
[1763476473803,4.228,3074.6,3071.7,0.52798]
[1763476474094,0.00487876,3074.8,3071.7,3.2536]
[1763476474298,0.3738,3075.8,3073.0,0.4008]
[1763476474986,0.3738,3075.8,3073.0,0.92855]
[1763476475192,0.3738,3075.8,3073.0,0.4008]
[1763476475593,0.3738,3075.8,3074.1,0.00487876]
[1763476477090,17.299,3076.0,3074.1,0.00487876]
[1763476478098,0.3738,3075.8,3071.8,0.52797]
[1763476478299,0.3738,3075.8,3071.9,0.52795]
[1763476478606,9.0506,3075.8,3070.6,0.3877]
[1763476478892,9.0506,3075.8,3071.0,0.5281]
[1763476479092,9.0506,3075.8,3070.6,0.3877]
[1763476479093,5.7978,3075.8,3070.6,0.3877]
[1763476479488,9.0458,3075.8,3070.6,0.3877]
[1763476479686,9.0458,3075.8,3071.6,0.00297734]
[1763476480396,0.3738,3075.8,3071.6,0.00297734]
[1763476480593,0.3738,3075.8,3071.6,0.53097734]
[1763476480594,19.537,3075.7,3071.6,0.53097734]
[1763476480791,19.537,3075.7,3071.6,0.00297734]
[1763476481193,0.00487876,3074.0,3071.9,0.4008]
[1763476481992,19.537,3075.7,3071.9,0.92874]
[1763476482207,19.537,3075.7,3071.9,0.4008]
[1763476482394,19.537,3075.7,3071.9,0.92875]
[1763476482594,19.537,3075.7,3071.9,0.4008]
[1763476483902,17.014,3075.6,3071.9,0.4008]
[1763476484202,24.855,3075.6,3071.9,0.4008]
[1763476484398,24.85762859,3075.6,3071.9,0.4008]
[1763476484697,6.464,3075.5,3072.4,0.52786]
[1763476484894,8.974,3075.5,3072.3,0.52788]
[1763476485099,8.974,3075.5,3071.9,0.92875]
[1763476485294,6.464,3075.4,3071.9,0.4008]
[1763476486096,15.438,3075.5,3072.0,4.08380122]
[1763476486294,15.438,3075.5,3072.1,0.83100122]
[1763476486496,15.438,3075.5,3072.2,0.83100122]
[1763476486794,15.438,3075.5,3072.3,0.83100122]
[1763476486995,0.00487876,3074.2,3073.5,0.00487876]
[1763476487197,6.464,3075.5,3073.5,0.00487876]
[1763476487391,0.00262859,3075.6,3073.5,0.00487876]
[1763476487392,0.00262859,3075.6,3073.6,3.252]
[1763476487593,0.00262859,3075.6,3073.9,0.5276]
[1763476487794,0.00262859,3075.6,3073.8,0.52761]
[1763476487988,0.00262859,3075.6,3073.6,3.252]
[1763476487989,0.00262859,3075.6,3073.5,0.00487876]
[1763476488301,0.00262859,3075.6,3073.6,0.8351514]
[1763476488500,0.00262859,3075.6,3073.7,0.8351514]
[1763476488794,0.00262859,3075.6,3073.5,0.007535]
[1763476488795,6.464,3075.5,3073.5,0.007535]
[1763476489400,0.00487876,3074.8,3073.5,0.007535]
[1763476490397,6.464,3074.7,3073.5,0.007535]
[1763476491002,6.46887876,3074.8,3073.5,0.007535]
[1763476492607,0.00487876,3074.8,3073.5,0.007535]
[1763476493103,0.00487876,3074.8,3073.6,0.84159194]
[1763476493300,0.00487876,3074.8,3073.7,0.84159194]
[1763476493502,0.00487876,3074.8,3073.8,0.84159194]
[1763476493699,0.00487876,3074.8,3073.9,0.84298961]
[1763476494003,0.00262859,3075.6,3074.0,0.84298961]
[1763476494203,0.00262859,3075.6,3074.3,0.841339]
[1763476494401,0.00262859,3075.6,3074.5,0.4008]
[1763476494609,0.00262859,3075.6,3074.6,0.84377367]
[1763476494802,0.00487876,3075.4,3073.5,0.848874]
[1763476494997,0.00487876,3075.4,3073.5,0.007535]
[1763476495195,17.016,3075.3,3073.5,0.007535]
[1763476495397,6.464,3075.2,3073.5,0.007535]
[1763476495712,8.263,3075.1,3073.5,0.007535]
[1763476497007,6.464,3075.0,3073.5,0.007535]
[1763476498000,0.00487876,3075.4,3073.5,0.007535]
[1763476498205,3.66487876,3075.4,3073.6,0.84860298]
[1763476498403,6.464,3075.3,3073.7,0.84860298]
[1763476498607,6.464,3075.3,3073.8,0.84860298]
[1763476498808,6.464,3075.3,3073.5,0.007535]
[1763476498997,6.464,3075.3,3073.6,0.84939692]
[1763476499199,10.12887876,3075.4,3073.7,0.84939692]
[1763476499402,10.12887876,3075.4,3073.9,0.841339]
[1763476499602,3.66487876,3075.4,3074.5,0.841339]
[1763476499809,3.66487876,3075.4,3074.6,0.84939692]
[1763476500009,3.66487876,3075.4,3074.7,0.84939692]
[1763476500210,3.66487876,3075.4,3074.4,0.841339]
[1763476500211,3.66487876,3075.4,3074.2,0.841339]
[1763476500415,6.464,3075.3,3074.3,0.84940167]
[1763476500615,0.00487876,3075.4,3074.5,0.3499]
[1763476500805,6.464,3077.1,3075.3,0.841339]
[1763476501000,6.8378,3077.2,3075.5,0.841339]
[1763476501209,6.464,3077.1,3075.6,0.84958752]
[1763476501513,6.8378,3077.2,3075.2,3.2504]
[1763476501701,6.464,3077.4,3075.6,1.074639]
[1763476501902,0.00487876,3076.5,3075.9,0.00487876]
[1763476502106,0.00340665,3077.4,3076.2,1.12244827]
[1763476502303,0.00340665,3077.4,3076.3,0.84804767]
[1763476502504,6.464,3077.3,3075.9,0.00854765]
[1763476503214,0.00487876,3076.9,3076.0,0.84619722]
[1763476503407,0.00340665,3077.4,3076.1,1.70082482]
[1763476503610,6.464,3078.8,3076.5,0.8546276]
[1763476503819,6.464,3078.8,3076.0,3.2496]
[1763476503820,6.464,3078.8,3076.6,0.84619722]
[1763476504115,6.464,3078.8,3075.9,0.86317525]
[1763476504308,0.00320407,3077.7,3076.0,0.84520539]
[1763476504500,0.00320407,3077.7,3075.9,0.00854765]
[1763476504501,6.464,3077.6,3076.1,0.84520539]
[1763476504706,0.0064119,3077.7,3076.2,0.84520539]
[1763476504911,10.551,3079.4,3077.2,0.8546276]
[1763476505117,17.015,3079.4,3077.3,1.69983299]
[1763476505411,17.015,3079.4,3077.4,0.84520539]
[1763476505717,6.464,3079.3,3076.7,0.3499]
[1763476505917,6.464,3079.3,3078.1,0.00487876]
[1763476506116,6.464,3079.3,3078.1,0.00853521]
[1763476506313,6.464,3079.3,3076.7,0.3499]
[1763476506515,9.7128,3079.3,3076.7,0.3499]
[1763476506909,6.464,3079.3,3076.7,0.3499]
[1763476507112,6.464,3079.3,3076.8,0.84055455]
[1763476507312,0.00487876,3078.4,3077.8,0.3499]
[1763476507505,0.0036358,3079.4,3077.8,0.3499]
[1763476507914,0.0036358,3079.4,3077.9,4.08650774]
[1763476508117,0.0036358,3079.4,3078.0,0.83850774]
[1763476508422,10.55,3079.8,3078.2,0.52687]
[1763476508716,10.55,3079.8,3078.3,0.83679903]
[1763476509022,8.925,3080.9,3077.8,3.5979]
[1763476509216,8.925,3080.9,3077.9,0.83724413]
[1763476509520,6.464,3080.8,3078.1,0.8546276]
[1763476509718,6.464,3080.8,3077.8,0.3499]
[1763476510020,6.46776782,3080.9,3077.9,1.68970714]
[1763476510317,6.464,3080.8,3077.8,0.3499]
[1763476510921,6.464,3080.8,3077.9,0.83461987]
[1763476511116,6.464,3080.8,3077.8,0.3499]
[1763476511117,6.464,3080.8,3078.0,0.83461987]
[1763476511317,6.464,3080.8,3077.8,0.3499]
[1763476511912,6.464,3080.8,3077.7,0.00487876]
[1763476512114,9.71120001,3080.8,3076.8,0.00378066]
[1763476512411,0.00376782,3080.9,3076.8,0.00378066]
[1763476512412,6.464,3080.7,3076.8,0.00378066]
[1763476512917,9.712,3080.7,3076.8,0.00378066]
[1763476513218,0.00487876,3079.1,3078.4,0.00487876]
[1763476513722,10.543,3079.5,3078.4,0.00487876]
[1763476514316,6.464,3079.4,3078.4,0.00487876]
[1763476514515,6.464,3079.4,3076.8,0.00378066]
[1763476514919,3.248,3079.3,3076.8,0.00378066]
[1763476515123,6.464,3079.4,3076.8,0.00378066]
[1763476515517,0.00485182,3078.4,3076.8,0.00378066]
[1763476515727,6.464,3078.3,3076.8,0.00378066]
[1763476515918,9.7128,3078.3,3076.8,0.00378066]
[1763476516119,6.464,3078.3,3076.8,0.00378066]
[1763476516320,6.464,3078.3,3075.6,0.2333]
[1763476516516,6.464,3078.3,3076.6,0.00487067]
[1763476516717,6.464,3078.3,3074.5,0.3499]
[1763476516718,0.00487067,3077.8,3074.6,0.83791033]
[1763476517024,6.464,3077.7,3074.7,0.83810575]
[1763476517222,15.225,3077.6,3074.5,0.3499]
[1763476517420,6.464,3077.5,3074.7,0.00336503]
[1763476517625,9.7144,3077.5,3074.7,0.00336503]
[1763476517929,0.3479,3076.8,3074.7,0.00336503]
[1763476518122,6.464,3076.7,3074.7,0.00336503]
[1763476518625,19.439,3076.6,3074.7,0.00336503]
[1763476518821,0.00487067,3076.0,3075.3,0.00487067]
[1763476519024,0.00866433,3076.0,3075.3,0.00487067]
[1763476519236,6.464,3077.9,3075.4,6.0]
[1763476519424,6.464,3077.9,3075.3,0.00487067]
[1763476519629,6.464,3079.1,3075.6,0.316]
[1763476519837,6.464,3079.1,3075.8,0.8546276]
[1763476520133,9.07864624,3079.1,3075.9,0.8379211]
[1763476520332,9.07864624,3079.1,3075.6,0.316]
[1763476520333,0.00487067,3077.8,3077.1,0.00487067]
[1763476520526,0.00487067,3077.8,3077.1,0.0074282]
[1763476521334,0.00487067,3077.8,3077.1,0.3234282]
[1763476521526,0.00364624,3079.1,3077.2,6.0]
[1763476521726,6.464,3081.5,3077.7,0.8546276]
[1763476521931,6.464,3081.5,3078.4,0.255]
[1763476522133,6.464,3081.5,3078.5,0.83751104]
[1763476522438,0.00487067,3080.3,3079.7,0.00487067]
[1763476522834,0.00896752,3080.3,3079.7,0.0084742]
[1763476523234,6.464,3080.2,3077.5,0.8546276]
[1763476523435,6.464,3080.2,3077.2,1.12244827]
[1763476523436,6.464,3080.2,3077.6,0.83716404]
[1763476523738,6.464,3080.2,3076.9,0.8546276]
[1763476523923,6.464,3080.2,3076.7,1.12244827]
[1763476523924,6.47296752,3080.3,3077.3,0.8546276]
[1763476524129,0.00896752,3080.3,3077.9,0.8546276]
[1763476524331,0.00896752,3080.3,3078.8,0.00487067]
[1763476524935,6.47296752,3080.3,3078.8,0.00487067]
[1763476525333,0.00896752,3080.3,3078.8,0.00487067]
[1763476525536,6.464,3081.7,3078.9,4.93816269]
[1763476525737,6.464,3082.0,3079.0,0.83633509]
[1763476525921,6.464,3082.0,3078.8,0.00487067]
[1763476526334,3.2456,3081.9,3078.8,0.00487067]
[1763476526532,0.00487067,3080.7,3077.1,0.316]
[1763476526738,15.363,3080.6,3077.1,0.316]
[1763476526931,6.464,3080.5,3076.5,0.042]
[1763476527133,6.464,3080.5,3076.6,0.83933807]
[1763476527329,6.464,3080.5,3076.5,0.8966276]
[1763476527529,6.464,3080.5,3076.6,0.8546276]
[1763476527838,6.464,3080.5,3076.5,0.042]
[1763476528141,3.24720001,3080.4,3076.5,0.042]
[1763476528338,2.30712415,3080.1,3076.5,0.042]
[1763476528538,17.004,3080.0,3076.5,0.042]
[1763476528835,0.00487067,3078.6,3076.5,0.042]
[1763476529033,0.1642,3078.4,3076.5,0.042]
[1763476529229,0.1642,3078.4,3076.5,0.04577921]
[1763476529735,9.7128,3078.3,3075.3,0.85050289]
[1763476530034,6.464,3078.2,3074.5,0.255]
[1763476530236,8.77112415,3078.3,3074.6,0.84525653]
[1763476530439,6.464,3078.1,3074.5,0.255]
[1763476530635,2.30712415,3077.7,3073.6,0.85050289]
[1763476530844,0.00487067,3076.0,3073.7,0.84533368]
[1763476531028,9.791,3075.9,3073.8,0.84533368]
[1763476531233,9.791,3075.9,3073.9,0.84533368]
[1763476531535,9.791,3075.9,3073.6,0.00417512]
[1763476531731,6.7702,3075.8,3073.6,0.00417512]
[1763476532235,6.464,3075.7,3073.6,0.00417512]
[1763476532434,5.8452,3075.8,3073.7,0.84370845]
[1763476532435,6.464,3075.8,3073.7,0.84370845]
[1763476532739,0.00876788,3076.0,3074.0,0.85050289]
[1763476532944,0.00876788,3076.0,3074.2,0.85050289]
[1763476533145,0.00876788,3076.0,3074.3,0.84370845]
[1763476533342,6.464,3077.0,3074.5,0.3124]
[1763476533640,2.91,3078.2,3074.9,0.85050289]
[1763476533839,2.91,3078.2,3074.6,4.09396756]
[1763476533840,2.91,3078.2,3075.8,1.16290289]
[1763476534145,2.91,3078.2,3076.0,0.85050289]
[1763476534341,6.464,3079.5,3076.3,0.85050289]
[1763476534648,0.00487067,3077.4,3076.8,0.00487066]
[1763476535735,0.00487067,3077.4,3076.0,0.00312528]
[1763476536832,9.7136,3077.3,3076.0,0.00312528]
[1763476537031,0.2791,3077.1,3074.1,0.85050289]
[1763476537244,6.464,3077.0,3073.0,0.85050289]
[1763476537539,0.00487067,3075.4,3072.4,0.85050289]
[1763476537838,21.62,3075.3,3072.3,0.85050289]
[1763476538034,21.62,3075.3,3072.3,0.00369801]
[1763476538035,21.62325024,3075.3,3072.3,0.00369801]
[1763476538437,21.62325024,3075.3,3072.4,0.84107829]
[1763476538641,0.00325024,3075.3,3072.6,0.85050289]
[1763476538954,6.464,3076.9,3073.7,0.85050289]
[1763476539136,6.464,3076.9,3073.8,0.84107829]
[1763476539137,6.518,3076.9,3073.8,0.84107829]
[1763476539338,6.464,3076.8,3073.9,0.84107829]
[1763476539540,6.464,3076.8,3073.4,0.85050289]
[1763476539747,6.46817181,3076.8,3073.5,0.83860306]
[1763476539947,0.00487915,3075.5,3074.8,0.00487915]
[1763476540143,0.00487915,3075.5,3074.8,0.00855229]
[1763476541745,6.464,3075.4,3074.8,0.00855229]
[1763476541939,6.464,3075.4,3073.0,0.3124]
[1763476542739,6.46887915,3075.5,3073.0,0.3124]
[1763476543039,0.00487915,3075.5,3073.1,0.83896329]
[1763476543240,0.00487915,3075.5,3073.2,0.83896329]
[1763476543441,0.00487915,3075.5,3073.3,0.83896329]
[1763476543639,0.00487915,3075.5,3073.4,0.83896329]
[1763476543940,0.00487915,3075.5,3073.0,0.31623635]
[1763476544248,6.464,3075.4,3073.1,0.83870767]
[1763476544446,6.46887915,3075.5,3073.0,0.31623635]
[1763476544651,6.46887915,3075.5,3073.1,0.83888646]
[1763476544845,6.46887915,3075.5,3073.2,0.83888646]
[1763476545046,0.00487915,3075.5,3073.3,0.83888646]
[1763476545252,0.00487915,3075.5,3073.0,0.31623635]
[1763476545253,0.00487915,3075.5,3073.4,1.68938935]
[1763476545450,0.00487915,3075.5,3073.0,4.41953924]
[1763476545641,0.00487915,3075.5,3073.1,0.83867634]
[1763476545948,6.464,3075.4,3073.0,0.00383635]
[1763476546650,3.2528,3075.3,3073.0,0.00383635]
[1763476546946,6.464,3075.4,3073.0,0.00383635]
[1763476547839,3.2528,3075.3,3073.0,0.00383635]
[1763476548039,6.464,3075.4,3073.0,0.00383635]
[1763476549452,6.464,3075.4,3070.9,0.83812213]
[1763476549652,0.00487915,3073.5,3070.6,0.3124]
[1763476549855,6.46887915,3073.5,3070.7,0.838278]
[1763476550147,0.00487915,3073.5,3070.8,0.838278]
[1763476550347,0.00487915,3073.5,3071.0,0.85050289]
[1763476550549,0.00860473,3073.5,3071.1,1.68878089]
[1763476550853,2.30712415,3076.7,3071.1,1.68878089]
[1763476550854,17.015,3075.6,3071.9,0.3124]
[1763476551148,17.015,3075.6,3072.0,4.94158089]
[1763476551345,17.015,3075.6,3071.9,0.3124]
[1763476551346,17.015,3075.6,3072.1,0.838278]
[1763476551650,0.00487915,3074.2,3073.5,0.00487915]
[1763476551850,6.464,3077.0,3073.5,0.00487915]
[1763476551851,6.464,3076.9,3074.4,0.3124]
[1763476552150,10.551,3078.1,3074.7,0.85050289]
[1763476552350,6.464,3078.0,3074.9,0.85050289]
[1763476552547,6.464,3078.0,3075.0,1.68596342]
[1763476552750,0.00487915,3076.8,3076.2,0.00487915]
[1763476552953,0.0039664,3076.8,3076.2,0.00775089]
[1763476553351,10.551,3078.1,3076.2,0.00775089]
[1763476554051,0.00487915,3077.5,3076.2,0.00775089]
[1763476554653,0.00747092,3077.5,3076.2,0.00775089]
[1763476555248,0.00747092,3077.5,3076.2,3.25735089]
[1763476555441,0.00747092,3077.5,3076.3,0.83747374]
[1763476555655,0.00747092,3077.5,3076.4,0.83747374]
[1763476555846,0.00747092,3077.5,3076.5,0.83747374]
[1763476556048,0.00747092,3077.5,3076.2,0.00775089]
[1763476560353,6.464,3078.9,3076.2,0.00775089]
[1763476560553,6.7702,3079.2,3076.5,0.85050289]
[1763476560753,6.464,3080.2,3076.8,0.2973]
[1763476561055,6.464,3080.2,3077.4,0.85050289]
[1763476561246,0.00487915,3079.1,3078.5,0.00487915]
[1763476561557,0.00331885,3080.2,3078.5,0.00739802]
[1763476561760,6.464,3081.5,3078.5,0.00739802]
[1763476561761,6.464,3081.5,3078.6,4.08183356]
[1763476561945,6.464,3082.0,3079.2,0.85050289]
[1763476562150,10.546,3082.1,3079.2,0.85050289]
[1763476562151,10.546,3082.1,3079.3,0.83463356]
[1763476562358,10.546,3082.1,3079.4,0.83463356]
[1763476562658,10.546,3082.1,3080.4,0.00487116]
[1763476562659,0.00487116,3081.0,3080.4,0.00487116]
[1763476562845,0.00767355,3081.0,3080.4,0.00487116]
[1763476563048,17.01,3082.1,3080.5,3.2456]
[1763476563049,10.546,3082.1,3080.5,3.2456]
[1763476563360,6.464,3083.6,3080.5,3.2448]
[1763476563548,6.464,3083.6,3080.5,3.244]
[1763476563748,6.464,3083.6,3080.4,0.00487116]
[1763476563954,6.464,3083.6,3080.4,3.24887116]
[1763476564164,0.00321436,3082.3,3080.5,3.244]
[1763476564661,0.00321436,3082.3,3080.4,0.00487116]
[1763476565561,0.00321436,3082.3,3080.5,3.2448]
[1763476565859,0.00411154,3083.6,3080.6,0.82426202]
[1763476566052,0.27781154,3083.6,3080.4,0.00487116]
[1763476566362,6.464,3083.5,3080.4,0.00487116]
[1763476566548,15.708,3083.5,3078.4,1.12244827]
[1763476566747,9.7096,3083.4,3078.0,1.14780289]
[1763476566956,6.464,3083.3,3078.0,0.2973]
[1763476567259,0.27781154,3083.6,3078.0,0.2973]
[1763476567260,6.464,3083.5,3078.0,0.2973]
[1763476567450,68.2566,3083.5,3078.0,0.2973]
[1763476567652,3.2456,3083.4,3078.0,0.2973]
[1763476567959,0.1387,3081.0,3078.0,0.2973]
[1763476568155,21.73,3080.9,3078.0,0.2973]
[1763476568361,3.2464,3080.8,3076.4,8.22553541]
[1763476568549,3.2464,3080.8,3076.4,0.1]
[1763476568748,6.464,3080.7,3078.6,0.2973]
[1763476568955,6.464,3080.6,3079.3,0.00487116]
[1763476569156,6.464,3080.8,3079.3,0.00487116]
[1763476569465,0.0034399,3081.0,3078.6,0.2973]
[1763476569853,0.00487116,3081.3,3078.6,1.12039854]
[1763476570058,0.00487116,3081.3,3078.6,0.2973]
[1763476570260,0.00487116,3081.3,3079.6,0.00487116]
[1763476570959,6.464,3083.5,3079.6,6.00487116]
[1763476571174,6.464,3083.5,3078.8,0.85050289]
[1763476571360,6.464,3083.5,3078.9,1.67146934]
[1763476571558,6.464,3083.5,3079.1,0.85050289]
[1763476571765,6.464,3083.5,3079.1,0.82096645]
[1763476571967,0.00487116,3081.6,3081.0,0.00487116]
[1763476572163,0.00487116,3081.6,3081.0,0.00760138]
[1763476572366,0.00487116,3081.6,3081.1,3.2448]
[1763476572670,6.464,3083.5,3081.0,6.00760138]
[1763476572854,6.7377,3083.6,3081.0,0.00760138]
[1763476573273,0.0346,3083.7,3081.0,0.00760138]
[1763476573764,0.0346,3083.7,3081.1,3.244]
[1763476574165,0.0346,3083.7,3081.0,0.00760138]
[1763476574166,0.0346,3083.7,3081.2,3.244]
[1763476574566,0.0346,3083.7,3081.0,0.00760138]
[1763476574761,0.0346,3083.7,3081.1,3.244]
[1763476575067,6.4986,3083.7,3081.0,0.00760138]
[1763476575256,6.464,3083.6,3080.0,0.2973]
[1763476575966,3.2448,3083.5,3080.0,0.2973]
[1763476576160,19.503,3083.4,3080.0,0.2973]
[1763476576356,0.00487116,3082.0,3081.4,0.00487116]
[1763476576864,0.00487116,3082.0,3080.0,0.30149248]
[1763476577868,0.00487116,3082.0,3080.7,0.00487116]
[1763476578569,6.464,3081.9,3080.0,0.00419248]
[1763476578961,6.464,3081.9,3077.5,0.82300064]
[1763476579161,6.464,3081.9,3077.7,40.8]
[1763476579358,6.464,3081.9,3077.8,0.82300064]
[1763476579557,6.464,3081.9,3077.9,0.82300064]
[1763476579763,6.46887116,3082.0,3079.9,0.00487116]
[1763476580372,0.00487116,3082.0,3080.0,3.2456]
[1763476580570,0.00487116,3082.0,3079.9,0.00487116]
[1763476580973,0.00487116,3082.0,3080.0,0.82665898]
[1763476581168,0.00487116,3082.0,3079.9,0.00487116]
[1763476581374,6.464,3083.3,3079.9,0.00487116]
[1763476581569,0.00264941,3083.4,3080.0,3.2448]
[1763476581775,0.00264941,3083.4,3080.0,6.66277892]
[1763476582073,0.00264941,3083.4,3079.9,0.00487116]
[1763476582275,0.00487116,3082.0,3079.9,0.00487116]
[1763476582977,0.00487116,3082.0,3080.4,0.83698908]
[1763476583269,0.00487116,3082.0,3080.5,0.82826454]
[1763476583478,0.00487116,3082.0,3079.9,1.67884932]
[1763476583479,0.00487116,3082.0,3080.6,0.82826454]
[1763476583673,0.00487116,3082.0,3080.7,0.82826454]
[1763476583873,0.00487116,3082.0,3080.2,0.83698908]
[1763476584072,0.00487116,3082.0,3080.3,0.82915268]
[1763476584378,0.00487116,3082.0,3080.4,0.82915268]
[1763476584584,0.00487116,3082.0,3080.5,0.82915268]
[1763476584769,0.00487116,3082.0,3080.6,0.82915268]
[1763476584973,0.00487116,3082.0,3079.9,0.00487116]
[1763476585174,0.00487116,3082.0,3080.0,0.8300772]
[1763476585481,0.00487116,3082.0,3079.9,0.00487116]
[1763476585880,0.00487116,3082.0,3080.0,0.83103507]
[1763476586184,0.00487116,3082.0,3080.7,0.83698908]
[1763476586479,0.00264941,3083.4,3081.0,0.2022]
[1763476586677,0.00264941,3083.4,3081.2,0.83698908]
[1763476586878,0.00264941,3083.4,3081.4,0.83698908]
[1763476587084,0.00264941,3083.4,3081.5,0.83103507]
[1763476587272,0.00264941,3083.4,3081.6,0.83163368]
[1763476587582,0.00487116,3082.8,3082.2,0.00487116]
[1763476587782,0.00487116,3082.8,3081.0,0.20512974]
[1763476588076,6.464,3082.7,3081.0,0.00292974]
[1763476588782,6.464,3082.7,3081.5,0.00487116]
[1763476589080,6.464,3082.7,3081.0,0.00292974]
[1763476589475,9.7088,3082.7,3081.0,0.00292974]
[1763476589674,12.464,3082.6,3079.9,0.84036126]
[1763476589877,6.464,3082.5,3079.2,0.84036126]
[1763476590079,0.00487116,3081.2,3079.3,0.83877642]
[1763476590280,6.464,3081.1,3079.4,0.83877642]
[1763476590481,0.00487116,3081.2,3079.5,0.83877642]
[1763476590482,6.46887116,3081.2,3079.5,0.83877642]
[1763476590791,6.47274001,3081.2,3079.6,0.83845482]
[1763476590982,6.47274001,3081.2,3079.5,0.00366108]
[1763476590983,0.2659,3081.0,3079.5,0.00366108]
[1763476591283,6.464,3080.9,3078.2,0.84036126]
[1763476591482,6.464,3080.9,3078.3,0.83959616]
[1763476591783,6.464,3080.9,3076.9,2.23197088]